fUSD/lending_fUSD_20240714
["ID","MTS","AMOUNT","RATE_DAILY","PERIOD"]
[332067782,1720948237670,-853.88,0.00013698,2]
[332067783,1720948237680,-500.0,0.00013698,2]
[332067784,1720948237689,-500.0,0.00013698,2]
[332067785,1720948237699,-500.0,0.00013698,2]
[332067786,1720948237708,-500.0,0.00013698,2]
[332067787,1720948237717,-500.0,0.00013698,2]
[332067788,1720948237726,-500.0,0.00013698,2]
[332067789,1720948237738,-1012.57,0.00013698,2]
[332067790,1720948237747,-500.0,0.00013698,2]
[332067791,1720948237756,-741.12,0.00013698,2]
[332067792,1720948237765,-500.0,0.00013698,2]
[332067793,1720948237775,-500.0,0.00013698,2]
[332067794,1720948237785,-500.0,0.00013698,2]
[332067795,1720948237794,-500.0,0.00013698,2]
[332067797,1720948237804,-500.0,0.00013698,2]
[332067798,1720948237814,-500.0,0.00013698,2]
[332067799,1720948237824,-500.0,0.00013698,2]
[332067801,1720948237833,-881.73,0.00013698,2]
[332067803,1720948237843,-500.0,0.00013698,2]
[332067804,1720948237852,-500.0,0.00013698,2]
[332067805,1720948237864,-1020.75,0.00013698,2]
[332067806,1720948237874,-967.84,0.00013698,2]
[332067807,1720948237883,-500.0,0.00013698,2]
[332067808,1720948237892,-500.0,0.00013698,2]
[332067809,1720948237903,-1097.25,0.00013698,2]
[332067810,1720948237912,-705.11,0.00013698,2]
[332067811,1720948237921,-1142.37,0.00013698,2]
[332067812,1720948237930,-500.0,0.00013698,2]
[332067813,1720948237941,-500.0,0.00013698,2]
[332067814,1720948237951,-500.0,0.00013698,2]
[332067815,1720948237961,-687.05,0.00013698,2]
[332067816,1720948237970,-500.0,0.00013698,2]
[332067817,1720948237982,-500.0,0.00013698,2]
[332067818,1720948237992,-889.98,0.00013698,2]
[332067820,1720948238001,-500.0,0.00013698,2]
[332067823,1720948238015,-704.15,0.00013698,2]
[332067825,1720948238024,-500.0,0.00013698,2]
[332067827,1720948238033,-500.0,0.00013698,2]
[332067829,1720948238043,-546.58,0.00013698,2]
[332067831,1720948238052,-500.0,0.00013698,2]
[332067832,1720948238061,-652.5,0.00013698,2]
[332067834,1720948238070,-500.0,0.00013698,2]
[332067835,1720948238080,-500.0,0.00013698,2]
[332067836,1720948238089,-500.0,0.00013698,2]
[332067837,1720948238099,-500.0,0.00013698,2]
[332067838,1720948238108,-520.15,0.00013698,2]
[332067839,1720948238117,-500.0,0.00013698,2]
[332067840,1720948238126,-500.0,0.00013698,2]
[332067841,1720948238136,-500.0,0.00013698,2]
[332067842,1720948238145,-500.0,0.00013698,2]
[332067843,1720948238154,-500.0,0.00013698,2]
[332067844,1720948238164,-500.0,0.00013698,2]
[332067845,1720948238173,-1332.24,0.00013698,2]
[332067846,1720948238182,-1089.35,0.00013698,2]
[332067847,1720948238191,-500.0,0.00013698,2]
[332067848,1720948238200,-500.0,0.00013698,2]
[332067849,1720948238210,-500.0,0.00013698,2]
[332067850,1720948238219,-500.0,0.00013698,2]
[332067851,1720948238230,-500.0,0.00013698,2]
[332067852,1720948238240,-1267.42,0.00013698,2]
[332067853,1720948238249,-500.0,0.00013698,2]
[332067854,1720948238259,-701.46,0.00013698,2]
[332067855,1720948238270,-500.0,0.00013698,2]
[332067856,1720948238280,-1082.48,0.00013698,2]
[332067857,1720948238291,-500.0,0.00013698,2]
[332067858,1720948238301,-500.0,0.00013698,2]
[332067859,1720948238312,-500.0,0.00013698,2]
[332067860,1720948238322,-500.0,0.00013698,2]
[332067861,1720948238331,-657.85,0.00013698,2]
[332067873,1720948238547,-500.0,0.00013698,2]
[332067875,1720948238558,-500.0,0.00013698,2]
[332067877,1720948238568,-512.07,0.00013698,2]
[332067879,1720948238577,-602.16,0.00013698,2]
[332067881,1720948238587,-500.0,0.00013698,2]
[332067883,1720948238597,-679.28,0.00013698,2]
[332067885,1720948238606,-500.0,0.00013698,2]
[332067887,1720948238616,-500.0,0.00013698,2]
[332067889,1720948238626,-691.77,0.00013698,2]
[332067891,1720948238635,-734.3,0.00013698,2]
[332067893,1720948238645,-950.37,0.00013698,2]
[332067895,1720948238655,-651.0,0.00013698,2]
[332067897,1720948238665,-500.0,0.00013698,2]
[332067899,1720948238674,-582.03,0.00013698,2]
[332067901,1720948238684,-603.99,0.00013698,2]
[332067903,1720948238693,-571.41,0.00013698,2]
[332067905,1720948238703,-500.0,0.00013698,2]
[332067906,1720948238712,-500.0,0.00013698,2]
[332067908,1720948238722,-1072.24,0.00013698,2]
[332067910,1720948238732,-500.0,0.00013698,2]
[332067912,1720948238742,-577.02,0.00013698,2]
[332067914,1720948238752,-500.0,0.00013698,2]
[332067916,1720948238761,-500.0,0.00013698,2]
[332067918,1720948238771,-494.31208324,0.00013698,2]
[332067920,1720948238781,-801.75,0.00013698,2]
[332067922,1720948238790,-500.0,0.00013698,2]
[332067924,1720948238800,-500.0,0.00013698,2]
[332067926,1720948238809,-381.47168289,0.00013698,2]
[332067928,1720948238819,-871.35,0.00013698,2]
[332067930,1720948238829,-500.0,0.00013698,2]
[332067932,1720948238838,-500.0,0.00013698,2]
[332067934,1720948238849,-695.21,0.00013698,2]
[332067936,1720948238859,-641.66,0.00013698,2]
[332067938,1720948238871,-1352.6,0.00013698,2]
[332067940,1720948238881,-500.0,0.00013698,2]
[332067942,1720948238890,-767.16,0.00013698,2]
[332067944,1720948238900,-500.0,0.00013698,2]
[332067946,1720948238910,-500.0,0.00013698,2]
[332067948,1720948238920,-1251.33,0.00013698,2]
[332067950,1720948238930,-500.0,0.00013698,2]
[332067951,1720948238943,-500.0,0.00013698,2]
[332067953,1720948238954,-928.82,0.00013698,2]
[332067955,1720948238964,-500.0,0.00013698,2]
[332067957,1720948238977,-500.0,0.00013698,2]
[332067959,1720948238988,-500.0,0.00013698,2]
[332067961,1720948238998,-4547.65,0.00013698,2]
[332067963,1720948239008,-500.0,0.00013698,2]
[332067965,1720948239019,-500.0,0.00013698,2]
[332067967,1720948239028,-500.0,0.00013698,2]
[332067969,1720948239038,-636.26,0.00013698,2]
[332067971,1720948239047,-500.0,0.00013698,2]
[332067973,1720948239057,-500.0,0.00013698,2]
[332067975,1720948239067,-500.0,0.00013698,2]
[332067977,1720948239078,-500.0,0.00013698,2]
[332067979,1720948239089,-920.7,0.00013698,2]
[332067981,1720948239099,-500.0,0.00013698,2]
[332067983,1720948239109,-500.0,0.00013698,2]
[332067985,1720948239119,-584.32,0.00013698,2]
[332067987,1720948239128,-1256.27,0.00013698,2]
[332067989,1720948239138,-500.0,0.00013698,2]
[332067992,1720948239148,-855.31,0.00013698,2]
[332067993,1720948239158,-500.0,0.00013698,2]
[332067995,1720948239167,-500.0,0.00013698,2]
[332067997,1720948239177,-500.0,0.00013698,2]
[332067999,1720948239187,-547.68,0.00013698,2]
[332068001,1720948239196,-1628.21,0.00013698,2]
[332068003,1720948239206,-500.0,0.00013698,2]
[332068005,1720948239216,-828.93,0.00013698,2]
[332068007,1720948239225,-500.0,0.00013698,2]
[332068009,1720948239236,-500.0,0.00013698,2]
[332068011,1720948239245,-1140.94,0.00013698,2]
[332068013,1720948239254,-500.0,0.00013698,2]
[332068015,1720948239263,-724.65,0.00013698,2]
[332068017,1720948239273,-500.0,0.00013698,2]
[332068019,1720948239282,-1647.8,0.00013698,2]
[332068021,1720948239292,-500.0,0.00013698,2]
[332068023,1720948239302,-500.0,0.00013698,2]
[332068025,1720948239311,-500.0,0.00013698,2]
[332068027,1720948239321,-500.0,0.00013698,2]
[332068029,1720948239331,-500.0,0.00013698,2]
[332068031,1720948239341,-500.0,0.00013698,2]
[332068033,1720948239350,-500.0,0.00013698,2]
[332068035,1720948239361,-489.36433061,0.00013698,2]
[332068037,1720948239371,-500.0,0.00013698,2]
[332068039,1720948239380,-967.99,0.00013698,2]
[332068041,1720948239390,-500.0,0.00013698,2]
[332068042,1720948239399,-804.77,0.00013698,2]
[332068043,1720948239409,-500.0,0.00013698,2]
[332068044,1720948239419,-500.0,0.00013698,2]
[332068045,1720948239428,-500.0,0.00013698,2]
[332068046,1720948239438,-500.0,0.00013698,2]
[332068047,1720948239447,-500.0,0.00013698,2]
[332068048,1720948239456,-1606.79,0.00013698,2]
[332068049,1720948239466,-1594.61,0.00013698,2]
[332068050,1720948239475,-500.0,0.00013698,2]
[332068051,1720948239485,-629.22,0.00013698,2]
[332068052,1720948239495,-500.0,0.00013698,2]
[332068054,1720948239504,-813.25,0.00013698,2]
[332068056,1720948239514,-500.0,0.00013698,2]
[332068058,1720948239524,-1632.76,0.00013698,2]
[332068060,1720948239534,-500.0,0.00013698,2]
[332068061,1720948239544,-1129.7,0.00013698,2]
[332068063,1720948239553,-500.0,0.00013698,2]
[332068066,1720948239563,-500.0,0.00013698,2]
[332068067,1720948239572,-500.0,0.00013698,2]
[332068069,1720948239582,-500.0,0.00013698,2]
[332068072,1720948239591,-500.0,0.00013698,2]
[332068074,1720948239601,-500.0,0.00013698,2]
[332068076,1720948239611,-500.0,0.00013698,2]
[332068078,1720948239620,-500.0,0.00013698,2]
[332068079,1720948239629,-956.87,0.00013698,2]
[332068081,1720948239638,-933.4,0.00013698,2]
[332068083,1720948239648,-1303.93,0.00013698,2]
[332068085,1720948239658,-581.35,0.00013698,2]
[332068087,1720948239667,-500.0,0.00013698,2]
[332068089,1720948239677,-500.0,0.00013698,2]
[332068091,1720948239687,-518.43,0.00013698,2]
[332068094,1720948239698,-500.0,0.00013698,2]
[332068096,1720948239707,-500.0,0.00013698,2]
[332068097,1720948239717,-1195.35,0.00013698,2]
[332068100,1720948239727,-500.0,0.00013698,2]
[332068101,1720948239737,-981.64,0.00013698,2]
[332068104,1720948239747,-752.45,0.00013698,2]
[332068106,1720948239757,-836.82,0.00013698,2]
[332068107,1720948239766,-500.0,0.00013698,2]
[332068109,1720948239776,-500.0,0.00013698,2]
[332068111,1720948239786,-500.0,0.00013698,2]
[332068113,1720948239796,-500.0,0.00013698,2]
[332068116,1720948239806,-500.0,0.00013698,2]
[332068118,1720948239817,-500.0,0.00013698,2]
[332068120,1720948239827,-500.0,0.00013698,2]
[332068122,1720948239837,-608.57,0.00013698,2]
[332068124,1720948239847,-500.0,0.00013698,2]
[332068126,1720948239857,-500.0,0.00013698,2]
[332068128,1720948239870,-500.0,0.00013698,2]
[332068129,1720948239879,-500.0,0.00013698,2]
[332068131,1720948239889,-862.68,0.00013698,2]
[332068133,1720948239898,-575.2,0.00013698,2]
[332068135,1720948239909,-561.88,0.00013698,2]
[332068137,1720948239919,-500.0,0.00013698,2]
[332068139,1720948239929,-500.0,0.00013698,2]
[332068141,1720948239939,-524.97,0.00013698,2]
[332068143,1720948239950,-707.0,0.00013698,2]
[332068145,1720948239959,-500.0,0.00013698,2]
[332068147,1720948239969,-500.0,0.00013698,2]
[332068149,1720948239979,-680.38,0.00013698,2]
[332068151,1720948239989,-500.0,0.00013698,2]
[332068153,1720948239999,-500.0,0.00013698,2]
[332068155,1720948240009,-1586.22,0.00013698,2]
[332068157,1720948240018,-500.0,0.00013698,2]
[332068159,1720948240028,-936.15,0.00013698,2]
[332068161,1720948240038,-500.0,0.00013698,2]
[332068163,1720948240048,-500.0,0.00013698,2]
[332068165,1720948240057,-1015.99,0.00013698,2]
[332068167,1720948240067,-500.0,0.00013698,2]
[332068169,1720948240076,-618.7,0.00013698,2]
[332068171,1720948240086,-500.0,0.00013698,2]
[332068173,1720948240095,-500.0,0.00013698,2]
[332068176,1720948240105,-500.0,0.00013698,2]
[332068179,1720948240115,-500.0,0.00013698,2]
[332068181,1720948240124,-500.0,0.00013698,2]
[332068183,1720948240134,-1317.99,0.00013698,2]
[332068185,1720948240144,-500.0,0.00013698,2]
[332068187,1720948240153,-500.0,0.00013698,2]
[332068189,1720948240163,-585.01,0.00013698,2]
[332068191,1720948240172,-576.93,0.00013698,2]
[332068193,1720948240181,-751.49,0.00013698,2]
[332068195,1720948240191,-500.0,0.00013698,2]
[332068197,1720948240201,-500.0,0.00013698,2]
[332068199,1720948240210,-500.0,0.00013698,2]
[332068201,1720948240220,-1059.97,0.00013698,2]
[332068203,1720948240231,-500.0,0.00013698,2]
[332068205,1720948240242,-500.0,0.00013698,2]
[332068207,1720948240251,-500.0,0.00013698,2]
[332068209,1720948240260,-7418.21,0.00013698,2]
[332068211,1720948240270,-993.17,0.00013698,2]
[332068213,1720948240280,-500.0,0.00013698,2]
[332068216,1720948240290,-498.48454445,0.00013698,2]
[332068218,1720948240301,-1313.51,0.00013698,2]
[332068220,1720948240312,-500.0,0.00013698,2]
[332068222,1720948240322,-963.31,0.00013698,2]
[332068224,1720948240332,-500.0,0.00013698,2]
[332068226,1720948240342,-500.0,0.00013698,2]
[332068228,1720948240353,-512.17,0.00013698,2]
[332068230,1720948240364,-500.0,0.00013698,2]
[332068233,1720948240375,-500.0,0.00013698,2]
[332068235,1720948240385,-500.0,0.00013698,2]
[332068237,1720948240394,-1126.63,0.00013698,2]
[332068239,1720948240404,-500.0,0.00013698,2]
[332068241,1720948240413,-500.0,0.00013698,2]
[332068243,1720948240423,-743.71,0.00013698,2]
[332068245,1720948240432,-500.0,0.00013698,2]
[332068247,1720948240442,-566.02,0.00013698,2]
[332068248,1720948240451,-500.0,0.00013698,2]
[332068250,1720948240461,-938.19,0.00013698,2]
[332068253,1720948240471,-500.0,0.00013698,2]
[332068255,1720948240480,-436.96995443,0.00013698,2]
[332068256,1720948240490,-500.0,0.00013698,2]
[332068258,1720948240500,-799.02,0.00013698,2]
[332068260,1720948240509,-500.0,0.00013698,2]
[332068262,1720948240518,-763.71,0.00013698,2]
[332068264,1720948240528,-1515.15,0.00013698,2]
[332068266,1720948240537,-1117.66,0.00013698,2]
[332068268,1720948240547,-500.0,0.00013698,2]
[332068270,1720948240556,-500.0,0.00013698,2]
[332068272,1720948240566,-503.11,0.00013698,2]
[332068274,1720948240576,-500.0,0.00013698,2]
[332068276,1720948240586,-500.0,0.00013698,2]
[332068278,1720948240595,-500.0,0.00013698,2]
[332068280,1720948240605,-1257.89,0.00013698,2]
[332068282,1720948240615,-504.3,0.00013698,2]
[332068284,1720948240624,-500.0,0.00013698,2]
[332068286,1720948240634,-805.67,0.00013698,2]
[332068288,1720948240643,-800.99,0.00013698,2]
[332068290,1720948240652,-569.53,0.00013698,2]
[332068292,1720948240663,-500.0,0.00013698,2]
[332068294,1720948240673,-500.0,0.00013698,2]
[332068296,1720948240683,-500.0,0.00013698,2]
[332068298,1720948240693,-1553.05,0.00013698,2]
[332068301,1720948240703,-500.0,0.00013698,2]
[332068303,1720948240713,-586.3,0.00013698,2]
[332068304,1720948240723,-597.8,0.00013698,2]
[332068307,1720948240734,-500.0,0.00013698,2]
[332068309,1720948240744,-1101.7,0.00013698,2]
[332068311,1720948240753,-500.0,0.00013698,2]
[332068313,1720948240763,-500.0,0.00013698,2]
[332068315,1720948240773,-1322.36,0.00013698,2]
[332068317,1720948240782,-500.0,0.00013698,2]
[332068319,1720948240791,-744.53,0.00013698,2]
[332068321,1720948240801,-500.0,0.00013698,2]
[332068323,1720948240811,-1381.86,0.00013698,2]
[332068325,1720948240822,-1612.37,0.00013698,2]
[332068327,1720948240832,-500.0,0.00013698,2]
[332068329,1720948240842,-500.0,0.00013698,2]
[332068331,1720948240851,-500.0,0.00013698,2]
[332068333,1720948240864,-761.62,0.00013698,2]
[332068335,1720948240874,-500.0,0.00013698,2]
[332068337,1720948240884,-1033.76,0.00013698,2]
[332068339,1720948240893,-500.0,0.00013698,2]
[332068341,1720948240903,-500.0,0.00013698,2]
[332068343,1720948240913,-500.0,0.00013698,2]
[332068351,1720948240986,-507.78,0.00013698,2]
[332068353,1720948240996,-703.0,0.00013698,2]
[332068355,1720948241005,-1374.49,0.00013698,2]
[332068357,1720948241015,-500.0,0.00013698,2]
[332068359,1720948241025,-500.0,0.00013698,2]
[332068360,1720948241035,-768.54,0.00013698,2]
[332068362,1720948241044,-700.15,0.00013698,2]
[332068364,1720948241053,-2686.44,0.00013698,2]
[332068366,1720948241062,-403.81173403,0.00013698,2]
[332068414,1720948241523,-668.72826597,0.00013698,2]
[332068416,1720948241532,-500.0,0.00013698,2]
[332068418,1720948241542,-500.0,0.00013698,2]
[332068420,1720948241551,-500.0,0.00013698,2]
[332068422,1720948241561,-330.90533865,0.00013698,2]
[332068424,1720948241570,-500.0,0.00013698,2]
[332068426,1720948241580,-500.0,0.00013698,2]
[332068428,1720948241589,-500.0,0.00013698,2]
[332068430,1720948241599,-500.0,0.00013698,2]
[332068432,1720948241609,-500.0,0.00013698,2]
[332068434,1720948241618,-500.0,0.00013698,2]
[332068436,1720948241628,-760.97,0.00013698,2]
[332068438,1720948241637,-689.99,0.00013698,2]
[332068440,1720948241646,-500.0,0.00013698,2]
[332068442,1720948241655,-500.0,0.00013698,2]
[332068444,1720948241665,-500.0,0.00013698,2]
[332068446,1720948241674,-500.0,0.00013698,2]
[332068448,1720948241684,-911.4,0.00013698,2]
[332068450,1720948241693,-500.0,0.00013698,2]
[332068452,1720948241703,-497.83388366,0.00013698,2]
[332068454,1720948241738,-2.16611634,0.00013698,2]
[332068455,1720948241748,-3312.23,0.00013698,2]
[332068456,1720948241757,-1601.65,0.00013698,2]
[332068457,1720948241767,-1050.5,0.00013698,2]
[332068458,1720948241776,-500.0,0.00013698,2]
[332068459,1720948241786,-500.0,0.00013698,2]
[332068460,1720948241795,-1077.02,0.00013698,2]
[332068462,1720948241804,-500.0,0.00013698,2]
[332068464,1720948241815,-881.61,0.00013698,2]
[332068466,1720948241824,-500.0,0.00013698,2]
[332068468,1720948241833,-500.0,0.00013698,2]
[332068470,1720948241844,-500.0,0.00013698,2]
[332068472,1720948241853,-327.21557804,0.00013698,2]
[332068474,1720948241869,-619.61442196,0.00013698,2]
[332068476,1720948241879,-500.0,0.00013698,2]
[332068478,1720948241888,-1095.79,0.00013698,2]
[332068480,1720948241898,-500.0,0.00013698,2]
[332068482,1720948241909,-707.46,0.00013698,2]
[332068484,1720948241919,-500.0,0.00013698,2]
[332068486,1720948241929,-500.0,0.00013698,2]
[332068488,1720948241940,-500.0,0.00013698,2]
[332068490,1720948241950,-500.0,0.00013698,2]
[332068492,1720948241960,-805.41,0.00013698,2]
[332068494,1720948241969,-599.86,0.00013698,2]
[332068496,1720948241979,-500.0,0.00013698,2]
[332068498,1720948241990,-500.0,0.00013698,2]
[332068500,1720948241999,-500.0,0.00013698,2]
[332068502,1720948242010,-3698.49,0.00013698,2]
[332068504,1720948242020,-500.0,0.00013698,2]
[332068507,1720948242030,-438.66716825,0.00013698,2]
[332068509,1720948242040,-1043.84,0.00013698,2]
[332068510,1720948242049,-772.93,0.00013698,2]
[332068512,1720948242058,-544.67,0.00013698,2]
[332068514,1720948242068,-500.0,0.00013698,2]
[332068517,1720948242078,-500.0,0.00013698,2]
[332068519,1720948242088,-593.53,0.00013698,2]
[332068521,1720948242097,-500.0,0.00013698,2]
[332068523,1720948242107,-1717.33,0.00013698,2]
[332068525,1720948242117,-500.0,0.00013698,2]
[332068527,1720948242127,-500.0,0.00013698,2]
[332068529,1720948242135,-2066.63,0.00013698,2]
[332068530,1720948242144,-500.0,0.00013698,2]
[332068532,1720948242154,-535.14,0.00013698,2]
[332068534,1720948242163,-500.0,0.00013698,2]
[332068536,1720948242173,-1318.15,0.00013698,2]
[332068538,1720948242183,-543.6,0.00013698,2]
[332068540,1720948242192,-500.0,0.00013698,2]
[332068542,1720948242202,-500.0,0.00013698,2]
[332068545,1720948242212,-500.0,0.00013698,2]
[332068546,1720948242221,-956.37,0.00013698,2]
[332068548,1720948242231,-500.0,0.00013698,2]
[332068550,1720948242240,-777.41,0.00013698,2]
[332068552,1720948242249,-1684.55,0.00013698,2]
[332068554,1720948242259,-500.0,0.00013698,2]
[332068556,1720948242269,-500.0,0.00013698,2]
[332068559,1720948242279,-525.45,0.00013698,2]
[332068561,1720948242289,-500.0,0.00013698,2]
[332068563,1720948242298,-500.0,0.00013698,2]
[332068565,1720948242307,-1574.42,0.00013698,2]
[332068566,1720948242317,-500.0,0.00013698,2]
[332068569,1720948242328,-500.0,0.00013698,2]
[332068571,1720948242338,-500.0,0.00013698,2]
[332068573,1720948242348,-1354.81,0.00013698,2]
[332068575,1720948242358,-500.0,0.00013698,2]
[332068577,1720948242367,-1260.76,0.00013698,2]
[332068579,1720948242377,-500.0,0.00013698,2]
[332068581,1720948242386,-500.0,0.00013698,2]
[332068583,1720948242396,-602.02,0.00013698,2]
[332068585,1720948242405,-320.51184883,0.00013698,2]
[332068587,1720948242415,-1000.0,0.00013698,2]
[332068589,1720948242426,-1507.60941841,0.00013698,2]
[332068590,1720948242438,-1393.72058159,0.00013698,2]
[332068592,1720948242448,-500.0,0.00013698,2]
[332068594,1720948242458,-236.90848938,0.00013698,2]
[332068605,1720948242568,-263.09151062,0.00013698,2]
[332068607,1720948242578,-500.0,0.00013698,2]
[332068609,1720948242587,-500.0,0.00013698,2]
[332068611,1720948242597,-28.17484853,0.00013698,2]
[332068614,1720948242620,-750.78515147,0.00013698,2]
[332068616,1720948242630,-500.0,0.00013698,2]
[332068618,1720948242639,-500.0,0.00013698,2]
[332068620,1720948242649,-82.56648847,0.00013698,2]
[332068623,1720948242672,-417.43351153,0.00013698,2]
[332068625,1720948242681,-500.0,0.00013698,2]
[332068627,1720948242690,-517.61,0.00013698,2]
[332068629,1720948242699,-500.0,0.00013698,2]
[332068631,1720948242708,-1289.77,0.00013698,2]
[332068632,1720948242717,-500.0,0.00013698,2]
[332068634,1720948242728,-500.0,0.00013698,2]
[332068636,1720948242738,-500.0,0.00013698,2]
[332068638,1720948242747,-500.0,0.00013698,2]
[332068640,1720948242756,-500.0,0.00013698,2]
[332068642,1720948242766,-500.0,0.00013698,2]
[332068644,1720948242775,-128.05013707,0.00013698,2]
[332068762,1720948244046,-759.83074969,0.00013598,2]
[332068764,1720948244056,-257.06620761,0.00013698,2]
[332068766,1720948244066,-500.0,0.00013698,2]
[332068769,1720948244076,-1259.35,0.00013698,2]
[332068771,1720948244087,-547.93,0.00013698,2]
[332068773,1720948244096,-1041.01,0.00013698,2]
[332068775,1720948244106,-900.88,0.00013698,2]
[332068776,1720948244116,-500.0,0.00013698,2]
[332068778,1720948244127,-500.0,0.00013698,2]
[332068780,1720948244136,-500.0,0.00013698,2]
[332068782,1720948244146,-309.38515026,0.00013698,2]
[332068785,1720948244159,-1.14152897,0.00013698,2]
[332068786,1720948244168,-1187.01,0.00013698,2]
[332068789,1720948244178,-500.0,0.00013698,2]
[332068791,1720948244188,-500.0,0.00013698,2]
[332068792,1720948244198,-852.24,0.00013698,2]
[332068794,1720948244207,-875.95,0.00013698,2]
[332068796,1720948244220,-500.0,0.00013698,2]
[332068799,1720948244230,-1399.72,0.00013698,2]
[332068801,1720948244241,-910.67,0.00013698,2]
[332068803,1720948244251,-2705.17090556,0.00013698,2]
[332068805,1720948244263,-2646.2132724,0.00013698,2]
[332068807,1720948244278,-408.7826365,0.00013698,2]
[332068810,1720948244291,-741.54318554,0.00013698,2]
[332068812,1720948244302,-500.0,0.00013698,2]
[332068814,1720948244313,-370.44396322,0.00013698,2]
[332068817,1720948244335,-299.58797889,0.00013698,2]
[332068821,1720948244366,-52.73805789,0.00013698,2]
[332068824,1720948244377,-671.09,0.00013698,2]
[332068826,1720948244389,-982.8,0.00013698,2]
[332068828,1720948244398,-500.0,0.00013698,2]
[332068830,1720948244409,-500.0,0.00013698,2]
[332068832,1720948244419,-552.62,0.00013698,2]
[332068834,1720948244431,-600.13,0.00013698,2]
[332068836,1720948244441,-500.0,0.00013698,2]
[332068838,1720948244451,-1142.28,0.00013698,2]
[332068840,1720948244461,-817.3,0.00013698,2]
[332068842,1720948244471,-500.0,0.00013698,2]
[332068844,1720948244483,-213.51021912,0.00013698,2]
[332068847,1720948244497,-654.80978088,0.00013698,2]
[332068849,1720948244507,-598.87,0.00013698,2]
[332068851,1720948244516,-500.0,0.00013698,2]
[332068853,1720948244526,-12.44453128,0.00013698,2]
[332068855,1720948244537,-487.55546872,0.00013698,2]
[332068857,1720948244548,-500.0,0.00013698,2]
[332068859,1720948244557,-318.6,0.00013698,2]
[332068861,1720948244566,-179.88,0.00013699,2]
[332068863,1720948244576,-200.0,0.00013699,2]
[332068865,1720948244585,-250.0,0.00013699,2]
[332068867,1720948244595,-500.0,0.00013699,2]
[332068869,1720948244606,-1320.65,0.00013699,2]
[332068871,1720948244615,-10000.0,0.00013699,2]
[332068873,1720948244625,-2218.31453133,0.00013699,2]
[332068875,1720948244637,-532.68546867,0.00013699,2]
[332068877,1720948244647,-160.69,0.000137,2]
[332068879,1720948244656,-258.18800932,0.00013752,2]
[332068881,1720948244667,-241.81199068,0.00013752,2]
[332068883,1720948244677,-354.43830253,0.00013752,2]
[332068885,1720948244689,-145.56169747,0.00013752,2]
[332068887,1720948244699,-500.0,0.00013752,2]
[332068889,1720948244708,-96.55460167,0.00013752,2]
[332068892,1720948244719,-277.0527081,0.00013752,2]
[332068900,1720948244788,-126.39269023,0.00013752,2]
[332068902,1720948244798,-196.48384242,0.00013753,2]
[332068904,1720948244810,-303.51615758,0.00013753,2]
[332068906,1720948244821,-500.0,0.00013753,2]
[332068908,1720948244831,-500.0,0.00013753,2]